bitfinex/quotes_ETHUSD_20220103
["timestamp","ask_amount","ask_price","bid_price","bid_amount"]
[1641244656765,0.00284211,3696.7,3696.1,0.105359]
[1641244657268,0.00227369,3696.6,3696.1,0.105359]
[1641244657671,0.00170527,3696.5,3696.1,0.105359]
[1641244658173,0.00113684,3696.4,3696.1,0.105359]
[1641244658567,0.00284211,3696.7,3696.1,0.105359]
[1641244659069,0.00227369,3696.6,3696.1,0.105359]
[1641244659510,0.00170527,3696.5,3696.1,0.105359]
[1641244659909,0.00113684,3696.4,3696.1,0.105359]
[1641244660309,0.00284211,3696.7,3696.1,0.105359]
[1641244660716,0.00227369,3696.6,3696.1,0.105359]
[1641244661112,0.00170527,3696.5,3696.1,0.105359]
[1641244661413,0.00113684,3696.4,3696.1,0.105359]
[1641244661813,1.27639,3696.8,3696.1,0.105359]
[1641244661814,0.00284211,3696.7,3696.1,0.105359]
[1641244662220,0.00227369,3696.6,3696.1,0.105359]
[1641244662619,0.00170527,3696.5,3696.1,0.105359]
[1641244663017,0.00113684,3696.4,3696.1,0.105359]
[1641244663460,0.00284211,3696.7,3696.1,0.105359]
[1641244663860,0.00227369,3696.6,3696.1,0.105359]
[1641244664258,0.00170527,3696.5,3696.1,0.105359]
[1641244664557,0.00113684,3696.4,3696.1,0.105359]
[1641244664960,0.00284211,3696.7,3696.1,0.105359]
[1641244665460,0.00227369,3696.6,3696.1,0.105359]
[1641244665863,0.00170527,3696.5,3696.0,0.105358]
[1641244666260,0.00113684,3696.4,3696.0,0.105358]
[1641244666662,0.00341054,3696.8,3696.0,0.105358]
[1641244667120,0.00284211,3696.7,3696.0,1.36895812]
[1641244667614,0.00227369,3696.6,3696.0,1.36895812]
[1641244668015,0.00170527,3696.5,3696.0,1.36895812]
[1641244668417,0.00113684,3696.4,3696.0,2.72159812]
[1641244668715,0.97632,3697.1,3696.0,4.07419012]
[1641244669114,0.30454738,3697.0,3696.0,4.07419012]
[1641244669516,0.00397896,3696.9,3696.0,4.07419012]
[1641244669915,0.00341054,3696.8,3696.0,4.07419012]
[1641244670315,0.00284211,3696.7,3696.0,4.07419012]
[1641244670517,0.00284211,3696.7,3696.1,0.6762983]
[1641244670792,0.00227369,3696.6,3696.2,0.6763]
[1641244671192,0.3,3697.0,3696.2,0.6763]
[1641244671193,0.00170527,3696.5,3696.2,0.6763]
[1641244671393,0.00170527,3696.5,3696.0,1.36895812]
[1641244671593,0.00113684,3696.4,3696.0,1.36895812]
[1641244671997,0.00341054,3696.8,3696.0,1.36895812]
[1641244672397,0.00284211,3696.7,3696.2,1.3525774]
[1641244672798,0.00227369,3696.6,3696.2,1.3525774]
[1641244673199,0.00170527,3696.5,3696.2,1.3525774]
[1641244673504,0.3,3697.0,3696.0,0.105358]
[1641244673505,0.00113684,3696.4,3696.0,0.105358]
[1641244673901,0.00397896,3696.9,3696.0,0.105358]
[1641244674099,0.00397896,3696.9,3695.9,2.16252746]
[1641244674300,0.00341054,3696.8,3695.9,2.16252746]
[1641244674515,0.00341054,3696.8,3696.0,0.00113685]
[1641244674716,0.00284211,3696.7,3696.0,0.00113685]
[1641244675118,0.00227369,3696.6,3696.0,0.00113685]
[1641244675416,0.00170527,3696.5,3696.0,0.00113685]
[1641244675816,0.00113684,3696.4,3696.0,0.00113685]
[1641244676216,0.97979054,3696.8,3696.0,0.00113685]
[1641244676616,0.00284211,3696.7,3696.0,0.00113685]
[1641244676916,0.97638,3696.8,3696.0,0.00113685]
[1641244676917,0.00227369,3696.6,3696.0,0.00113685]
[1641244677322,0.00170527,3696.5,3696.0,0.00113685]
[1641244677720,0.00113684,3696.4,3696.0,0.00113685]
[1641244678163,0.00284211,3696.7,3696.1,0.6763187]
[1641244678560,0.00227369,3696.6,3696.1,0.6763187]
[1641244678957,0.00170527,3696.5,3696.0,0.67745685]
[1641244679157,0.00170527,3696.5,3696.0,0.00113685]
[1641244679357,0.6,3697.0,3696.0,0.00113685]
[1641244679358,0.00113684,3696.4,3696.0,0.00113685]
[1641244679758,0.97637,3696.8,3696.0,0.00113685]
[1641244679959,1.27637,3696.8,3696.0,0.00113685]
[1641244680159,0.00284211,3696.7,3696.0,0.00113685]
[1641244680559,0.00227369,3696.6,3696.0,0.00113685]
[1641244680959,0.00170527,3696.5,3696.0,0.00113685]
[1641244681358,0.00113684,3696.4,3696.0,0.00113685]
[1641244681758,1.27637,3696.8,3696.0,0.00113685]
[1641244681759,0.00284211,3696.7,3696.0,0.00113685]
[1641244682216,0.00227369,3696.6,3696.0,0.00113685]
[1641244682418,1.27637,3696.8,3696.0,0.00113685]
[1641244682617,0.67637,3696.8,3696.0,0.00113685]
[1641244682820,1.35275,3697.2,3696.1,0.6763186]
[1641244682821,0.67634,3697.0,3696.1,0.6763186]
[1641244683218,0.67634,3697.0,3696.2,0.00227369]
[1641244684019,0.97634,3697.0,3696.2,0.00227369]
[1641244684221,0.67636,3696.9,3696.2,0.00227369]
[1641244684628,0.00113685,3696.8,3696.0,0.00341054]
[1641244685029,0.30113685,3696.8,3696.0,0.00341054]
[1641244685422,0.00113685,3696.8,3696.0,0.00341054]
[1641244685857,0.6764,3696.6,3696.0,0.00341054]
[1641244686058,0.3,3696.6,3696.0,0.00341054]
[1641244686258,0.00113685,3696.8,3696.0,0.00341054]
[1641244686963,0.67639,3696.7,3696.0,0.00341054]
[1641244687162,0.97639,3696.7,3696.0,0.00341054]
[1641244687362,1.27639,3696.7,3696.0,0.00341054]
[1641244687563,0.3,3696.7,3696.0,0.00341054]
[1641244687762,0.30113685,3696.8,3696.0,0.00341054]
[1641244688164,0.30113685,3696.8,3696.0,0.67973054]
[1641244688365,0.30113685,3696.8,3696.0,3.6879155]
[1641244688564,0.00113685,3696.8,3696.1,0.00284212]
[1641244689163,0.00113685,3696.8,3696.0,0.00341054]
[1641244689414,0.00113685,3696.8,3696.2,0.67625]
[1641244689613,0.00113685,3696.8,3696.4,0.67626]
[1641244690712,0.00113685,3696.8,3696.3,1.35424827]
[1641244691009,0.00113685,3696.8,3696.4,0.00113685]
[1641244692418,0.00113685,3696.8,3696.4,0.67739685]
[1641244694065,0.00113685,3696.8,3696.5,0.676239]
[1641244694267,0.00113685,3696.8,3696.6,0.67623]
[1641244696164,0.00113685,3696.8,3696.5,1.352499]
[1641244697114,0.00113685,3696.8,3696.4,0.00113685]
[1641244698516,0.00113685,3696.8,3696.3,0.00170527]
[1641244698918,0.00113685,3696.8,3696.2,0.00227369]
[1641244699522,0.00113685,3696.8,3696.2,1.35488369]
[1641244699718,0.00113685,3696.8,3696.2,0.00227369]
[1641244699917,0.00113685,3696.8,3696.3,0.00170527]
[1641244700119,0.00113685,3696.8,3696.4,0.6762641]
[1641244701357,0.00113685,3696.8,3696.4,1.3525341]
[1641244701556,0.00113685,3696.8,3696.4,2.0287841]
[1641244702361,0.00113685,3696.8,3696.4,1.3525341]
[1641244703964,0.00113685,3696.8,3696.2,1.80905825]
[1641244704410,1.00106602,3696.8,3696.3,0.00170527]
[1641244704613,1.30106602,3696.8,3696.3,0.00170527]
[1641244704815,1.60106602,3696.8,3696.3,0.00170527]
[1641244705012,2.27752602,3696.8,3696.3,0.00170527]
[1641244705413,2.27752602,3696.8,3696.1,0.00284212]
[1641244705812,0.62645,3696.5,3696.1,0.00284212]
[1641244706015,0.92645,3696.5,3696.1,0.00284212]
[1641244706215,0.6,3696.5,3696.1,0.00284212]
[1641244706417,0.15,3696.5,3696.1,0.00284212]
[1641244706616,0.3,3696.4,3696.1,0.00284212]
[1641244706814,0.3,3696.4,3696.0,0.00341054]
[1641244707018,1.3,3696.4,3696.0,0.00341054]
[1641244707218,0.67646,3696.3,3696.0,0.00341054]
[1641244707620,0.97646,3696.3,3696.0,0.00341054]
[1641244707822,0.3,3696.3,3696.0,0.00341054]
[1641244708023,0.00113685,3696.8,3696.0,0.00341054]
[1641244708269,0.67638,3696.7,3696.0,0.00341054]
[1641244708664,0.3,3696.7,3696.0,0.00341054]
[1641244709068,0.00113685,3696.8,3696.0,0.00341054]
[1641244712128,0.00113685,3696.8,3696.3,0.6762752]
[1641244712528,0.00113685,3696.8,3696.4,0.00113685]
[1641244712726,0.00113685,3696.8,3696.5,1.29919112]
[1641244714527,3.3289197,3697.5,3696.5,1.29919112]
[1641244714728,0.67631,3697.1,3696.5,1.29919112]
[1641244715130,0.97631,3697.1,3696.5,1.29919112]
[1641244717472,0.3,3697.1,3696.5,1.29919112]
[1641244717872,1.27627,3697.3,3696.5,1.29919112]
[1641244718272,0.00341054,3697.2,3696.5,1.29919112]
[1641244718471,0.30341054,3697.2,3696.5,1.29919112]
[1641244718671,0.00284212,3697.1,3696.5,1.29919112]
[1641244718872,0.67914212,3697.1,3696.5,1.29919112]
[1641244719073,0.00227369,3697.0,3696.5,1.29919112]
[1641244719517,0.00170527,3696.9,3696.5,1.29919112]
[1641244719924,3.64382463,3697.8,3696.6,0.6761954]
[1641244719925,0.00113685,3696.8,3696.6,0.6761954]
[1641244720223,0.00625266,3697.7,3696.7,15.88579728]
[1641244720420,0.00625266,3697.7,3697.1,0.6761]
[1641244720619,0.00625266,3697.7,3696.7,15.88579728]
[1641244720620,0.00568424,3697.6,3697.3,0.67608]
[1641244721023,0.00511581,3697.5,3697.3,0.67608]
[1641244721422,0.00852635,3698.1,3697.4,0.67607]
[1641244721819,0.00795793,3698.0,3697.7,0.67597]
[1641244722026,0.00795793,3698.0,3697.7,1.38589314]
[1641244722225,0.00738951,3697.9,3697.8,2.07210941]
[1641244722626,0.00738951,3697.9,3697.8,3.07210941]
[1641244723025,0.00738951,3697.9,3697.8,5.87210941]
[1641244723291,0.00738951,3697.9,3697.8,2.07210941]
[1641244723493,0.00738951,3697.9,3697.8,1.36017886]
[1641244724491,0.00738951,3697.9,3697.7,0.67597]
[1641244724896,0.00682108,3697.8,3697.7,0.67597]
[1641244726096,0.00682108,3697.8,3697.6,1.1888]
[1641244726496,0.00625266,3697.7,3697.6,1.1888]
[1641244730519,0.06882619,3698.1,3697.7,3.55]
[1641244730766,0.06882619,3698.1,3697.6,1.1888]
[1641244730965,0.00170527,3698.0,3697.6,1.1888]
[1641244731466,0.00113685,3697.9,3697.6,1.1888]
[1641244731867,0.67603,3699.0,3697.6,1.1888]
[1641244731868,0.00682108,3698.9,3697.6,1.1888]
[1641244732264,0.00625266,3698.8,3697.6,1.1888]
[1641244732765,0.00568423,3698.7,3697.6,1.1888]
[1641244733166,0.00511581,3698.6,3697.6,1.1888]
[1641244733468,0.00454739,3698.5,3697.6,1.1888]
[1641244733867,0.00397896,3698.4,3697.6,1.1888]
[1641244734267,0.00341054,3698.3,3697.6,1.1888]
[1641244734723,0.00284212,3698.2,3697.6,1.1888]
[1641244735124,0.00227369,3698.1,3697.6,1.1888]
[1641244735624,0.00682108,3698.9,3697.6,1.1888]
[1641244736028,0.00625266,3698.8,3697.6,1.1888]
[1641244736326,0.00568423,3698.7,3697.6,1.1888]
[1641244736630,0.39511581,3698.6,3697.5,0.27639994]
[1641244736826,0.69511581,3698.6,3697.5,0.27639994]
[1641244737031,0.00454739,3698.5,3697.4,3.371159]
[1641244737429,0.00397896,3698.4,3697.5,0.00113685]
[1641244737828,0.67618,3698.2,3697.5,0.00113685]
[1641244738029,0.1309,3697.7,3697.5,0.00113685]
[1641244747680,0.1309,3697.7,3697.5,0.10649585]
[1641244748179,0.1236114,3697.7,3697.5,0.10649585]
[1641244757733,0.1236114,3697.7,3697.5,0.00113685]
[1641244758934,0.1236114,3697.7,3697.5,0.67716685]
[1641244759137,0.00227369,3698.1,3697.6,15.85]
[1641244759340,0.00227369,3698.1,3697.8,0.67593]
[1641244759935,0.00227369,3698.1,3697.8,0.73573]
[1641244760437,0.00227369,3698.1,3698.0,8.67586]
[1641244760974,0.00227369,3698.1,3698.0,0.67586]
[1641244761777,0.00227369,3698.1,3698.0,3.47586]
[1641244762382,1.2412,3699.7,3698.2,1.35174]
[1641244762580,0.6,3699.6,3698.9,0.67583]
[1641244762781,0.3,3699.6,3698.9,0.67583]
[1641244762981,1.4823,3699.7,3698.7,0.6758499]
[1641244763183,3.2928,3700.1,3698.7,0.6991]
[1641244763383,0.00852635,3699.6,3699.3,1.26390708]
[1641244763583,0.00852635,3699.6,3699.3,1.93961918]
[1641244763781,0.00795793,3699.5,3699.3,1.93961918]
[1641244763982,0.00795793,3699.5,3699.3,2.61535918]
[1641244764181,3.64382463,3700.2,3699.3,2.61535918]
[1641244764182,0.00738951,3699.4,3699.3,2.61535918]
[1641244764427,0.00738951,3699.4,3699.3,1.3514521]
[1641244764626,0.00738951,3699.4,3699.3,0.67574]
[1641244768038,0.00738951,3699.4,3699.3,0.7107241]
[1641244768482,3.64382463,3700.8,3699.3,0.7107241]
[1641244768483,3.60121414,3700.8,3699.3,0.7107241]
[1641244768682,4.20121414,3700.8,3699.8,1.35126]
[1641244768880,0.0073895,3700.7,3699.8,1.35126]
[1641244769286,0.00682108,3700.6,3699.6,0.6756573]
[1641244769483,1.06294393,3700.4,3699.4,1.35126]
[1641244769884,0.00511581,3700.3,3699.5,0.67568]
[1641244770297,0.00454739,3700.2,3699.5,1.35135]
[1641244770684,1.06294393,3700.4,3699.5,1.35135]
[1641244770685,0.00397896,3700.1,3699.5,1.35135]
[1641244771083,0.00341054,3700.0,3699.5,1.35135]
[1641244771484,0.00284212,3699.9,3699.5,1.35135]
[1641244771924,0.00227369,3699.8,3699.5,1.35135]
[1641244772325,0.00170527,3699.7,3699.5,1.35135]
[1641244772726,0.00113684,3699.6,3699.5,8.052692]
[1641244772930,0.00113684,3699.6,3699.5,2.027012]
[1641244774531,0.00113684,3699.6,3699.5,6.627012]
[1641244774727,0.00113684,3699.6,3699.5,22.477012]
[1641244775329,0.00113684,3699.6,3699.5,24.28379656]
[1641244776592,0.00113684,3699.6,3699.5,24.38915556]
[1641244776796,0.00113684,3699.6,3699.5,22.582371]
[1641244777196,0.00113684,3699.6,3699.5,18.982371]
[1641244777595,0.00113684,3699.6,3699.5,17.982371]
[1641244778200,0.00113684,3699.6,3699.5,2.132371]
[1641244780531,0.00113684,3699.6,3699.5,5.282371]
[1641244780738,0.00113684,3699.6,3699.5,21.132371]
[1641244781132,0.00113684,3699.6,3699.5,2.132371]
[1641244782538,1.53761061,3700.9,3699.5,2.132371]
[1641244782738,1.53761061,3700.9,3699.9,1.3511944]
[1641244782938,0.00682109,3700.8,3699.9,3.20953457]
[1641244783375,0.00625266,3700.7,3699.9,3.20953457]
[1641244783572,0.00625266,3700.7,3699.9,5.01682091]
[1641244783774,0.00568424,3700.6,3699.9,5.01682091]
[1641244784174,0.00511582,3700.5,3699.9,3.20953457]
[1641244784374,0.00511582,3700.5,3699.9,2.53394017]
[1641244784573,0.00454739,3700.4,3699.9,2.53394017]
[1641244784775,1.192158,3700.9,3699.9,2.53394017]
[1641244784973,1.192158,3700.9,3700.0,0.00227369]
[1641244785178,0.0022737,3700.8,3700.0,0.00227369]
[1641244785577,4.68057956,3700.9,3699.9,1.81012845]
[1641244785578,0.00170527,3700.7,3699.9,1.81012845]
[1641244785979,0.00113685,3700.6,3699.9,1.81012845]
[1641244786477,0.00113685,3700.6,3699.9,1.35406481]
[1641244787134,0.00113685,3700.6,3699.9,0.00284211]
[1641244787732,0.00113685,3700.6,3699.8,0.00341054]
[1641244788540,0.39,3700.5,3699.8,0.00341054]
[1641244788735,0.69,3700.5,3699.8,0.105359]
[1641244789035,0.99,3700.5,3699.9,0.00284211]
[1641244789334,1.35172,3700.3,3699.9,0.00284211]
[1641244789534,8.63988331,3700.0,3699.9,0.00284211]
[1641244789737,9.02988331,3700.0,3699.9,0.00284211]
[1641244790034,10.02988331,3700.0,3699.9,0.00284211]
[1641244791473,13.04610575,3700.0,3699.9,0.00284211]
[1641244792076,7.54610575,3700.0,3699.9,0.00284211]
[1641244793581,4.52988331,3700.0,3699.9,0.00284211]
[1641244793879,2.92988331,3700.0,3699.9,0.00284211]
[1641244794280,0.39,3700.0,3699.9,0.00284211]
[1641244794536,0.39,3700.5,3699.9,0.00284211]
[1641244794736,0.67576,3700.3,3699.9,0.00284211]
[1641244796541,0.97576,3700.3,3699.9,0.00284211]
[1641244797243,1.27576,3700.3,3699.9,0.00284211]
[1641244798777,0.67579,3700.1,3699.9,0.00284211]
[1641244799178,0.97579,3700.1,3699.6,0.00454739]
[1641244799579,0.3,3700.1,3699.6,0.00454739]
[1641244799979,1.95162,3700.3,3699.6,0.00454739]
[1641244800179,0.6,3700.3,3699.6,0.00454739]
[1641244800380,0.3,3700.3,3699.6,0.00454739]
[1641244800581,1.99,3700.5,3699.6,0.00454739]
[1641244800782,0.99,3700.5,3699.6,0.00454739]
[1641244800981,1.99,3700.5,3699.6,0.00454739]
[1641244801182,0.67573,3700.4,3699.6,0.00454739]
[1641244801583,1.67573,3700.4,3699.6,0.00454739]
[1641244801782,0.67573,3700.4,3699.6,0.00454739]
[1641244802037,1.67573,3700.4,3699.6,1.81183373]
[1641244802236,0.67573,3700.4,3699.8,1.008996]
[1641244802436,1.67573,3700.4,3699.8,1.008996]
[1641244802636,1.67573,3700.4,3699.9,0.00284211]
[1641244803537,0.67573,3700.4,3699.9,0.00284211]
[1641244803737,1.67573,3700.4,3699.9,0.00284211]
[1641244804137,0.67573,3700.4,3699.9,0.105358]
[1641244804336,1.67573,3700.4,3699.9,0.105358]
[1641244804538,0.0093,3700.3,3699.9,0.105358]
[1641244804740,0.68505,3700.3,3699.9,0.105358]
[1641244805140,0.98505,3700.3,3699.9,0.105358]
[1641244807981,0.67578,3700.1,3699.9,0.105358]
[1641244808380,0.0093,3700.0,3699.9,0.105358]
[1641244808780,0.0093,3700.0,3699.9,0.10820011]
[1641244811431,0.0093,3700.2,3699.9,0.10820011]
[1641244811632,0.67577,3700.1,3699.9,0.10820011]
[1641244812033,0.97577,3700.1,3699.9,0.10820011]
[1641244813685,1.6516071,3700.1,3699.9,0.10820011]
[1641244814084,1.6516071,3700.1,3699.9,0.00284211]
[1641244814284,2.80190673,3700.1,3699.9,0.00284211]
[1641244814488,0.0093,3700.0,3699.8,0.00341054]
[1641244814785,0.6851864,3700.0,3699.8,0.00341054]
[1641244814984,0.9851864,3700.0,3699.8,0.00341054]
[1641244815586,0.3,3699.9,3699.8,0.00341054]
[1641244816184,7.48104503,3699.9,3699.8,0.00341054]
[1641244816384,4.13104503,3699.9,3699.8,0.00341054]
[1641244816584,1.3,3699.9,3699.8,0.00341054]
[1641244817630,1.3093,3699.9,3699.8,0.00341054]
[1641244819040,6.62482495,3699.9,3699.8,0.00341054]
[1641244819238,7.01482495,3699.9,3699.7,0.105359]
[1641244819435,7.01482495,3699.9,3699.6,0.0688893]
[1641244819436,8.08505747,3699.7,3699.6,0.0688893]
[1641244819739,13.83858989,3699.7,3699.6,0.07002615]
[1641244820776,13.84788989,3699.7,3699.6,0.07002615]
[1641244820979,8.0,3699.6,3697.9,0.0599]
[1641244821183,0.67607,3699.0,3697.9,0.0599]
[1641244821379,0.67607,3699.0,3698.0,0.00909477]
[1641244821380,0.6761,3698.7,3698.0,0.00909477]
[1641244821578,3.24501951,3698.7,3698.0,0.00909477]
[1641244821778,0.6,3698.7,3698.0,0.00909477]
[1641244821981,3.500394,3698.7,3698.0,0.00909477]
[1641244822187,1.10868225,3698.4,3698.0,0.00909477]
[1641244822582,1.70868225,3698.4,3698.0,0.00909477]
[1641244822781,0.67616,3698.2,3697.9,0.00966319]
[1641244822982,0.67616,3698.2,3697.7,0.01080004]
[1641244823183,2.38484225,3698.4,3697.7,0.01080004]
[1641244823384,3.38484225,3698.4,3697.5,0.01193689]
[1641244823582,3.38484225,3698.4,3697.5,0.11729589]
[1641244823783,0.0093,3698.3,3697.5,0.11729589]
[1641244823984,0.0093,3698.3,3697.6,0.01136846]
[1641244824447,0.67615,3698.0,3697.6,0.01136846]
[1641244824644,0.97615,3698.0,3697.6,0.01136846]
[1641244824841,0.6,3698.0,3697.6,0.01136846]
[1641244825044,0.3,3698.0,3697.6,0.01136846]
[1641244825241,0.3,3698.2,3697.6,0.01136846]
[1641244825445,0.6762,3697.8,3697.6,0.01136846]
[1641244825646,0.9762,3697.8,3697.6,0.01136846]
[1641244825846,1.2762,3697.8,3697.6,0.01136846]
[1641244826850,0.0093,3697.7,3697.6,0.01136846]
[1641244828285,1.36186,3697.7,3697.6,0.01136846]
[1641244828686,2.36186,3697.7,3697.6,0.01136846]
[1641244829886,5.22931045,3697.7,3697.6,0.01136846]
[1641244830087,5.20043244,3697.7,3697.6,0.01136846]
[1641244830297,2.36186,3697.7,3697.6,0.01136846]
[1641244830492,5.20090957,3697.7,3697.6,0.01136846]
[1641244831695,5.20090957,3697.7,3697.6,0.11672746]
[1641244832849,5.59090957,3697.7,3697.6,0.11672746]
[1641244833444,2.75186,3697.7,3697.6,0.11672746]
[1641244833647,5.59718566,3697.7,3697.6,0.11672746]
[1641244835147,5.57723763,3697.7,3697.6,0.11672746]
[1641244835352,5.57382183,3697.7,3697.6,0.11672746]
[1641244835706,5.56873574,3697.7,3697.6,0.11672746]
[1641244836892,6.33583574,3697.7,3697.6,0.11672746]
[1641244838198,3.50368456,3697.7,3697.6,0.11672746]
[1641244838399,2.73658456,3697.7,3697.6,0.11672746]
[1641244841848,5.48658456,3697.7,3697.6,0.11672746]
[1641244843323,21.33658456,3697.7,3697.6,0.11672746]
[1641244843721,21.33658456,3697.7,3697.4,0.105358]
[1641244843921,1.352931,3697.6,3697.4,0.105358]
[1641244844120,0.39,3697.5,3697.4,0.105358]
[1641244844321,16.54,3697.5,3697.4,0.105358]
[1641244844525,16.54,3697.5,3697.4,0.10649485]
[1641244844721,17.54,3697.5,3697.4,0.10649485]
[1641244845122,17.54,3697.5,3697.4,0.00113685]
[1641244845322,17.84,3697.5,3697.4,0.00113685]
[1641244845524,15.85,3697.3,3697.2,0.45]
[1641244845722,17.21652,3697.3,3697.2,0.45]
[1641244845926,17.51652,3697.3,3697.2,0.45113685]
[1641244846124,18.51652,3697.3,3697.2,0.45113685]
[1641244846965,19.50222,3697.3,3697.1,0.06940354]
[1641244847151,18.11902483,3697.2,3697.1,0.06940354]
[1641244847350,2.0295993,3696.8,3696.2,6.12]
[1641244847551,0.67654,3696.5,3696.2,6.12]
[1641244847751,0.67654,3696.5,3696.3,0.00511581]
[1641244848051,0.97654,3696.5,3696.3,0.00511581]
[1641244848454,1.97654,3696.5,3696.3,0.00511581]
[1641244848651,3.29522955,3696.5,3696.3,0.00511581]
[1641244849352,3.97175955,3696.5,3696.3,0.00511581]
[1641244850554,0.67654,3696.3,3696.1,0.00625266]
[1641244850796,0.97654,3696.3,3696.1,0.00625266]
[1641244851200,1.27654,3696.3,3696.1,0.00625266]
[1641244853004,1.22654,3696.3,3696.1,0.00625266]
[1641244853402,0.97654,3696.3,3696.1,0.00625266]
[1641244855653,0.67645,3696.6,3696.1,0.00625266]
[1641244856951,0.97645,3696.6,3696.1,0.00625266]
[1641244857155,1.27645,3696.6,3696.1,0.00625266]
[1641244860146,0.97645,3696.6,3696.1,0.00625266]
[1641244860346,1.27645,3696.6,3696.1,0.00625266]
[1641244860545,0.97645,3696.6,3696.1,0.00625266]
[1641244861747,0.67647,3696.4,3696.1,0.00625266]
[1641244862155,0.97647,3696.4,3696.1,0.00625266]
[1641244862355,1.27647,3696.4,3696.1,0.00625266]
[1641244864557,0.3,3696.4,3696.1,0.00625266]
[1641244864757,0.6,3696.6,3696.1,0.00625266]
[1641244864957,1.3,3696.9,3696.1,2.86981934]
[1641244865158,0.6,3696.9,3696.1,0.00625266]
[1641244865360,0.3,3696.9,3696.2,0.00568423]
[1641244865558,0.36940607,3697.1,3696.1,0.00625266]
[1641244865797,0.67638,3697.0,3696.1,0.00625266]
[1641244865999,0.97638,3697.0,3696.1,0.00625266]
[1641244866195,0.3,3697.0,3696.1,0.00625266]
[1641244866395,0.36940607,3697.1,3696.7,1.83326113]
[1641244866795,0.36940607,3697.1,3696.8,0.00227369]
[1641244867202,1.35294,3696.9,3696.8,0.00227369]
[1641244867400,2.3294,3696.9,3696.8,0.00227369]
[1641244867598,3.6294,3696.9,3696.8,0.00227369]
[1641244867800,3.6294,3696.9,3696.7,0.00284212]
[1641244868701,0.67644,3696.8,3696.7,0.00284212]
[1641244870355,0.97644,3696.8,3696.7,0.00284212]
[1641244872763,0.97644,3696.8,3696.6,0.00341054]
[1641244872963,1.27644,3696.8,3696.6,0.00341054]
[1641244873796,1.27644,3696.8,3696.6,1.83667167]
[1641244874196,1.27644,3696.8,3696.7,0.00284212]
[1641244874898,1.27644,3696.8,3696.6,1.83667167]
[1641244875299,1.27644,3696.8,3696.7,0.00284212]
[1641244876699,1.27644,3696.8,3696.5,0.00397896]
[1641244876943,1.27644,3696.8,3696.7,1.83321068]
[1641244877349,1.27644,3696.8,3696.7,1.8360528]
[1641244877748,1.27644,3696.8,3696.7,0.00284212]
[1641244878150,1.27644,3696.8,3696.5,0.00397896]
[1641244879150,0.67642,3696.7,3696.5,0.00397896]
[1641244879350,0.97642,3696.7,3696.5,0.00397896]
[1641244881609,1.97642,3696.7,3696.5,0.00397896]
[1641244884018,0.3,3696.6,3696.5,0.00397896]
[1641244884220,0.3,3696.6,3696.1,0.00625266]
[1641244884446,0.67651,3696.4,3696.1,0.00625266]
[1641244884647,0.97651,3696.4,3696.1,0.00625266]
[1641244884848,0.6,3696.4,3696.1,0.00625266]
[1641244885051,2.65301,3696.5,3696.1,0.00625266]
[1641244885448,3.32952,3696.5,3696.1,0.00625266]
[1641244885849,0.67651,3696.3,3696.1,0.00625266]
[1641244886051,0.97651,3696.3,3696.1,0.00625266]
[1641244886350,0.3,3696.3,3696.1,0.00625266]
[1641244886549,1.0,3696.7,3696.1,0.00625266]
[1641244886752,1.95291,3696.8,3696.1,0.00625266]
[1641244887153,0.67645,3696.5,3696.1,0.00625266]
[1641244887354,0.97645,3696.5,3696.1,0.00625266]
[1641244887753,0.6,3696.5,3696.1,0.00625266]
[1641244887955,1.653,3696.6,3696.1,0.00625266]
[1641244888196,2.32949,3696.6,3696.1,0.00625266]
[1641244888596,3.0059777,3696.6,3696.1,0.00625266]
[1641244888796,0.67649,3696.3,3696.1,0.00625266]
[1641244888996,0.97649,3696.3,3696.1,0.00625266]
[1641244889397,1.27649,3696.3,3696.1,0.00625266]
[1641244889597,0.97649,3696.3,3696.1,0.00625266]
[1641244889797,1.27649,3696.3,3696.1,0.00625266]
[1641244891799,1.27649,3696.3,3696.1,0.11161166]
[1641244892258,1.27649,3696.3,3696.2,0.00568423]
[1641244893257,0.6,3696.3,3696.2,0.00568423]
[1641244893458,0.3,3696.3,3696.2,0.00568423]
[1641244894058,1.3,3696.5,3696.2,0.00568423]
[1641244894858,0.67647,3696.4,3696.2,0.00568423]
[1641244895059,0.97647,3696.4,3696.2,0.00568423]
[1641244897906,0.67644,3696.6,3696.2,0.00568423]
[1641244898108,0.06940607,3697.1,3696.2,0.00568423]
[1641244898109,0.06940607,3697.1,3696.3,0.0129346]
[1641244898602,0.06940607,3697.1,3696.4,0.00454739]
[1641244898801,0.06940607,3697.1,3696.4,3.3864475]
[1641244899003,3.66308599,3697.7,3696.5,8.0]
[1641244899204,3.66308599,3697.7,3697.3,0.67611]
[1641244899454,0.0022737,3697.6,3697.4,0.6760901]
[1641244899954,0.00170527,3697.5,3697.4,0.6760901]
[1641244900155,0.00170527,3697.5,3697.3,3.29766614]
[1641244900357,0.00170527,3697.5,3697.3,1.26936614]
[1641244900558,0.00113685,3697.4,3697.3,1.26936614]
[1641244901160,0.00113685,3697.4,3697.1,0.73809]
[1641244901359,0.00113685,3697.4,3697.1,2.09033]
[1641244901558,0.00113685,3697.4,3697.3,1.83318074]
[1641244901957,0.00113685,3697.4,3697.1,0.0619]
[1641244903414,0.00113685,3697.4,3697.0,1.83318074]
[1641244903808,0.00113685,3697.4,3696.8,2.59539529]
[1641244904208,0.00113685,3697.4,3696.9,0.00170527]
[1641244905212,0.00113685,3697.4,3696.9,1.03253224]
[1641244905411,0.00113685,3697.4,3697.0,3.44822474]
[1641244905617,0.00113685,3697.4,3697.0,4.83275865]
[1641244905816,0.00113685,3697.4,3697.1,1.38826887]
[1641244906021,0.00113685,3697.4,3697.2,4.31312722]
[1641244906216,0.00113685,3697.4,3697.3,11.00359389]
[1641244906417,0.00113685,3697.4,3697.3,3.00359389]
[1641244907051,0.00113685,3697.4,3697.3,6.70359389]
[1641244908352,0.00113685,3697.4,3697.3,3.00359389]
[1641244910053,0.00113685,3697.4,3697.3,10.92101039]
[1641244910256,0.00113685,3697.4,3697.3,8.0]
[1641244910696,0.00113685,3697.4,3697.3,10.92728755]
[1641244912707,0.00113685,3697.4,3697.3,10.96499635]
[1641244914482,0.00113685,3697.4,3697.3,14.09779635]
[1641244916075,3.685e-05,3697.4,3697.3,15.48779635]
[1641244916273,0.06940391,3698.7,3697.4,8.0]
[1641244916477,0.06940391,3698.7,3698.0,0.71012661]
[1641244916674,0.00682108,3698.6,3698.3,0.70863706]
[1641244916872,0.00682108,3698.6,3698.4,3.57347502]